bitfinex-derivatives/quotes_ETHF0:USTF0_20250403
["timestamp","ask_amount","ask_price","bid_price","bid_amount"]
[1743709821575,1.11996,1786.5,1786.4,1.11994]
[1743709821784,2.51296,1786.5,1786.4,1.11994]
[1743709822282,1.12005,1786.3,1786.2,4.32787]
[1743709822580,1.12018,1786.1,1786.0,3.934]
[1743709823082,1.12024,1786.0,1785.9,1.12026]
[1743709823283,1.1203,1785.9,1785.8,5.0593]
[1743709823878,1.1203,1785.9,1785.8,1.1203]
[1743709824084,1.1203,1785.9,1785.8,5.0563]
[1743709824381,1.12037,1785.8,1785.7,3.94338362]
[1743709824682,2.61447,1785.8,1785.7,5.06381362]
[1743709827387,2.61447,1785.8,1785.7,3.94338362]
[1743709827685,2.61447,1785.8,1785.7,5.06381362]
[1743709827987,2.61447,1785.8,1785.7,0.00838362]
[1743709828486,2.61447,1785.8,1785.7,1.12881362]
[1743709829187,2.61447,1785.8,1785.7,0.00838362]
[1743709829586,5.82227,1785.8,1785.7,0.00838362]
[1743709829783,8.32227,1785.8,1785.7,0.00838362]
[1743709830291,1.12062,1785.4,1785.3,40.8]
[1743709830482,4.32842,1785.4,1785.3,40.8]
[1743709830982,1.5275,1785.5,1785.4,1.12062]
[1743709831178,3.2078,1785.7,1785.3,46.80948]
[1743709831383,1.5275,1785.7,1785.6,1.12049]
[1743709831584,1.53588363,1785.7,1785.6,5.04649]
[1743709831783,1.53588363,1785.7,1785.6,6.48879]
[1743709832182,0.00838363,1785.7,1785.6,6.48879]
[1743709832487,0.00838363,1785.7,1785.6,13.00519062]
[1743709832788,1.12005,1786.3,1786.2,1.12009]
[1743709832993,4.32785,1786.4,1786.3,1.12005]
[1743709833284,1.12005,1786.4,1786.3,1.12005]
[1743709833481,1.12003,1786.4,1786.3,1.12002]
[1743709833887,1.12003,1786.4,1786.0,6.00828]
[1743709833888,5.7078,1786.4,1785.8,7.1488]
[1743709834083,1.12026,1786.0,1785.9,1.12025]
[1743709835093,1.12026,1786.0,1785.9,1.1203]
[1743709835389,1.8823,1786.3,1786.2,1.12012]
[1743709835590,0.7622,1786.3,1786.2,5.06112]
[1743709835893,4.32783,1786.4,1786.3,1.12005]
[1743709836092,1.12835363,1786.5,1786.4,1.11999]
[1743709836486,0.00838363,1786.5,1786.4,1.11999]
[1743709836794,1.12831363,1786.5,1786.4,1.11999]
[1743709837205,1.11999,1786.4,1786.3,1.12837363]
[1743709837383,4.32779,1786.4,1786.3,0.00838363]
[1743709837587,6.82779,1786.4,1786.3,0.00838363]
[1743709838688,4.32779,1786.4,1786.3,0.00838363]
[1743709839281,4.32779,1786.4,1786.3,1.12843363]
[1743709839491,1.11999,1786.4,1786.3,1.12843363]
[1743709839990,2.55296363,1786.5,1786.4,1.11999]
[1743709840191,1.11999,1786.4,1786.3,5.06939363]
[1743709840388,1.11999,1786.4,1786.3,3.94938363]
[1743709840389,2.54619,1786.4,1786.3,3.94938363]
[1743709840895,6.45279,1786.4,1786.3,0.00838363]
[1743709841096,8.95279,1786.4,1786.3,0.00838363]
[1743709843791,1.12024,1786.0,1785.9,3.938]
[1743709843999,1.1203,1785.9,1785.8,41.92032]
[1743709844191,2.5911,1785.9,1785.8,41.92032]
[1743709844392,1.12049,1785.6,1785.5,3.2078]
[1743709844693,1.12049,1785.6,1785.5,8.2211036]
[1743709844885,1.12049,1785.6,1785.5,45.8133036]
[1743709845089,1.12049,1785.6,1785.5,45.27748363]
[1743709845390,1.12049,1785.6,1785.5,45.277466]
[1743709845594,1.12049,1785.6,1785.5,46.39798821]
[1743709845895,1.12049,1785.6,1785.5,45.85053]
[1743709846692,1.4708,1785.7,1785.6,1.12049]
[1743709846897,1.4708,1785.7,1785.6,2.61109]
[1743709847094,2.59123,1785.7,1785.6,2.61109]
[1743709847294,3.2078,1785.8,1785.7,1.12043]
[1743709847295,4.32821,1785.8,1785.7,1.12043]
[1743709847495,4.32821,1785.8,1785.7,2.61103]
[1743709847693,4.32821,1785.8,1785.7,1.4906]
[1743709847893,3.2078,1785.8,1785.6,1.12046]
[1743709848100,2.59375,1785.9,1785.8,1.12037]
[1743709848288,3.969,1786.1,1785.9,1.12025]
[1743709848488,2.59368,1786.0,1785.9,1.12025]
[1743709848898,2.59368,1786.0,1785.9,43.41085]
[1743709849298,2.59368,1786.0,1785.9,42.2906]
[1743709849497,2.59368,1786.0,1785.9,43.4109]
[1743709849698,2.59368,1786.0,1785.9,42.2906]
[1743709850292,2.59368,1786.0,1785.9,40.8]
[1743709851092,1.12028,1786.0,1785.9,43.3431]
[1743709851495,2.57468,1786.0,1785.9,43.3431]
[1743709851802,1.12023,1786.1,1786.0,1.12024]
[1743709852096,1.12023,1786.1,1786.0,1.4228]
[1743709852297,2.57463,1786.1,1786.0,1.4228]
[1743709852701,2.57463,1786.1,1786.0,2.54304]
[1743709852889,1.12023,1786.1,1786.0,2.54304]
[1743709853091,1.12016,1786.2,1786.1,1.12012]
[1743709853301,1.12016,1786.2,1786.1,6.47162]
[1743709854107,2.5998,1786.3,1786.2,1.12012]
[1743709854305,1.4797,1786.3,1786.2,2.55162]
[1743709854601,4.32784,1786.4,1786.3,1.12005]
[1743709854800,4.32784,1786.4,1786.3,3.09903705]
[1743709855001,4.32784,1786.4,1786.1,4.6555]
[1743709855002,1.12005,1786.3,1786.1,4.6555]
[1743709855196,1.4797,1786.3,1786.1,6.47164]
[1743709855392,1.12012,1786.2,1786.1,3.92]
[1743709855596,1.12012,1786.2,1786.1,5.04018]
[1743709856198,1.12012,1786.2,1786.1,3.92]
[1743709856907,1.81572,1786.2,1786.1,3.92]
[1743709858305,3.9034,1786.2,1786.0,3.913]
[1743709858503,2.60118,1786.1,1786.0,3.913]
[1743709858909,1.12024,1786.0,1785.9,46.77]
[1743709859204,1.12024,1786.0,1785.9,45.8313]
[1743709859205,2.56064,1786.0,1785.9,45.8313]
[1743709859700,2.56064,1786.0,1785.9,46.37882006]
[1743709859904,2.56064,1786.0,1785.9,46.91394851]
[1743709860306,3.2078,1786.4,1785.9,52.35785871]
[1743709860509,1.12012,1786.3,1786.2,1.1201]
[1743709860699,1.12012,1786.3,1786.2,5.3854]
[1743709860898,1.12012,1786.3,1786.2,6.50552]
[1743709861094,2.56052,1786.3,1786.2,6.50552]
[1743709861299,2.56052,1786.3,1786.2,3.915]
[1743709861806,1.4404,1786.3,1786.2,5.03512]
[1743709862104,4.32784,1786.4,1786.3,1.12005]
[1743709862307,1.12004,1786.4,1786.3,2.60635]
[1743709862501,1.12004,1786.4,1786.3,3.15406163]
[1743709862707,0.00838363,1786.5,1786.4,1.11999]
[1743709863003,0.00838363,1786.5,1786.4,3.68926764]
[1743709863203,0.00838363,1786.5,1786.4,3.68911546]
[1743709863599,1.12831363,1786.5,1786.4,4.39739434]
[1743709864007,0.00838363,1786.5,1786.4,4.39739434]
[1743709864709,1.12831363,1786.5,1786.4,4.39739434]
[1743709864909,0.00838363,1786.5,1786.4,4.39702628]
[1743709865204,1.12831363,1786.5,1786.4,3.6887474]
[1743709866110,1.12831363,1786.5,1786.4,3.15359945]
[1743709866311,1.12831363,1786.5,1786.4,3.68828931]
[1743709866509,1.12831363,1786.5,1786.4,3.15359945]
[1743709866806,1.12012,1786.3,1786.2,1.12008]
[1743709867011,1.12012,1786.3,1786.2,7.64052537]
[1743709867213,2.52295,1786.4,1786.3,1.12005]
[1743709868112,0.00838363,1786.5,1786.4,1.11999]
[1743709868315,1.12831363,1786.5,1786.4,1.11999]
[1743709868517,1.12831363,1786.5,1786.4,2.62989]
[1743709869613,4.33611363,1786.5,1786.4,3.907]
[1743709869810,1.12005,1786.3,1786.2,5.02909]
[1743709870007,4.32785,1786.3,1786.2,3.909]
[1743709870206,1.12018,1786.1,1786.0,3.912]
[1743709870413,1.12018,1786.1,1786.0,5.03224]
[1743709870611,2.57498,1786.1,1786.0,5.03224]
[1743709870814,1.12015,1786.2,1786.1,1.12018]
[1743709871312,1.4548,1786.3,1786.2,1.12012]
[1743709871509,2.57485,1786.3,1786.2,1.12012]
[1743709871711,1.12005,1786.4,1786.3,1.12005]
[1743709871911,1.12005,1786.4,1786.3,5.03305]
[1743709872914,1.12005,1786.4,1785.9,44.0078]
[1743709872915,1.4034,1786.4,1785.9,44.0078]
[1743709873110,1.4034,1786.4,1786.0,3.912]
[1743709873111,1.12018,1786.1,1786.0,3.912]
[1743709873715,2.52358,1786.1,1786.0,3.912]
[1743709874108,1.12024,1786.0,1785.9,40.8]
[1743709874310,1.1203,1785.9,1785.8,5.03237]
[1743709874613,1.12041,1785.8,1785.7,5.03238]
[1743709874818,1.4734,1785.8,1785.7,45.83238]
[1743709875119,1.4734,1785.8,1785.7,46.379494]
[1743709875318,2.59377,1785.8,1785.7,46.379494]
[1743709875620,2.59377,1785.8,1785.7,46.91435819]
[1743709875814,2.59377,1785.8,1785.7,47.08737006]
[1743709876015,2.59377,1785.8,1785.7,46.379494]
[1743709876216,2.59377,1785.8,1785.7,46.37975186]
[1743709876613,2.59377,1785.8,1785.7,45.25937186]
[1743709876813,2.59377,1785.8,1785.7,40.8]
[1743709878508,1.4734,1785.8,1785.7,41.92043]
[1743709878907,3.2078,1786.2,1785.8,2.80092]
[1743709879110,4.7135,1786.2,1786.1,1.12018]
[1743709879315,2.62582,1786.2,1786.1,1.12018]
[1743709880522,1.12024,1786.0,1785.9,5.02425]
[1743709880820,1.12024,1786.0,1785.9,3.904]
[1743709881010,1.12037,1785.8,1785.7,49.03618]
[1743709881212,1.12037,1785.8,1785.7,50.1164597]
[1743709881413,1.12037,1785.8,1785.7,49.58357751]
[1743709882018,1.12037,1785.8,1785.7,49.58355914]
[1743709882510,1.12037,1785.8,1785.7,49.58361914]
[1743709882715,2.53837,1785.8,1785.7,47.9158]
[1743709883114,2.80108,1785.7,1785.4,5.04797363]
[1743709883315,1.12056,1785.5,1785.4,6.53417363]
[1743709883625,1.12056,1785.5,1785.4,49.12232931]
[1743709883821,1.12056,1785.5,1785.4,49.1223294]
[1743709884116,1.12056,1785.5,1785.4,48.41431812]
[1743709884318,1.12056,1785.5,1785.4,46.92811812]
[1743709885223,1.12056,1785.5,1785.4,45.80122528]
[1743709885425,1.12056,1785.5,1785.4,45.2687051]
[1743709885918,1.12056,1785.5,1785.4,46.38604786]
[1743709886321,3.2078,1785.7,1785.4,45.26529672]
[1743709886521,3.5326,1785.9,1785.7,1.12043]
[1743709886522,1.426,1785.8,1785.7,1.12043]
[1743709886823,1.12043,1785.7,1785.6,2.56984]
[1743709887012,2.54643,1785.8,1785.7,1.12043]
[1743709887220,1.12043,1785.7,1785.6,2.56984]
[1743709887422,2.54643,1785.7,1785.6,43.36984]
[1743709887719,2.54643,1785.7,1785.6,42.2494]
[1743709888025,2.54643,1785.7,1785.6,40.8]
[1743709888221,2.54643,1785.7,1785.6,41.92049]
[1743709888418,1.426,1785.7,1785.6,41.92049]
[1743709888817,1.426,1785.7,1785.6,43.36989]
[1743709889225,2.54643,1785.7,1785.6,43.36989]
[1743709889423,1.426,1785.7,1785.6,43.36989]
[1743709889928,1.852,1785.9,1785.8,1.12037]
[1743709890130,3.3786,1785.9,1785.8,5.03337]
[1743709890629,2.2583,1785.9,1785.6,40.8]
[1743709890928,1.12043,1785.7,1785.6,41.92045]
[1743709891124,1.5266,1785.8,1785.7,1.12043]
[1743709891324,2.64697,1785.8,1785.7,2.53293]
[1743709891725,3.9095,1786.0,1785.7,2.53293]
[1743709891924,1.12021,1786.1,1786.0,1.12018]
[1743709892130,1.12024,1786.0,1785.9,2.53275]
[1743709892431,1.5266,1786.0,1785.9,2.53275]
[1743709892729,1.5266,1786.0,1785.9,3.07937597]
[1743709893431,2.64684,1786.0,1785.9,3.07950502]
[1743709893631,1.5266,1786.0,1785.9,3.07950502]
[1743709893827,1.5266,1786.0,1785.9,2.53275]
[1743709894030,1.5266,1786.0,1785.9,3.07952022]
[1743709894333,4.32797,1786.2,1786.1,1.12018]
[1743709894532,5.71897,1786.2,1786.1,5.02718]
[1743709894832,0.71308363,1786.5,1786.2,1.12012]
[1743709895027,1.83305363,1786.5,1786.4,1.11999]
[1743709895229,3.22405363,1786.5,1786.4,5.02699]
[1743709895523,2.10408363,1786.5,1786.4,5.02699]
[1743709895728,3.22401363,1786.5,1786.4,5.02699]
[1743709896232,1.1201,1786.3,1786.2,5.02409]
[1743709896528,1.1201,1786.3,1785.9,14.20707]
[1743709896529,1.12024,1786.0,1785.9,14.20707]
[1743709896725,2.80027,1786.3,1786.0,1.12021]
[1743709896726,1.12022,1786.1,1786.0,1.12021]
[1743709896924,3.28467,1786.2,1786.1,1.12018]
[1743709897125,2.55799,1786.1,1786.0,1.12024]
[1743709897329,3.2078,1786.4,1786.0,1.07999142]
[1743709897538,1.4378,1786.4,1786.3,1.12005]
[1743709897729,2.55784,1786.4,1786.3,5.03305]
[1743709897925,1.4378,1786.4,1786.3,5.03305]
[1743709898126,1.4378,1786.4,1786.3,5.58022056]
[1743709898421,1.43978363,1786.5,1786.3,5.58022056]
[1743709898422,0.00838363,1786.5,1786.4,1.11999]
[1743709898729,0.00838363,1786.5,1786.4,1.66716056]
[1743709899125,0.00838363,1786.5,1786.4,4.16716895]
[1743709899426,0.00838363,1786.5,1786.4,6.14802342]
[1743709899624,0.00838363,1786.5,1786.4,3.64802342]
[1743709899927,0.00838363,1786.5,1786.4,2.19980222]
[1743709900134,1.12831363,1786.5,1786.4,4.46017895]
[1743709900431,1.12831363,1786.5,1786.4,8.61264673]
[1743709900432,1e-08,1786.5,1786.4,8.61264673]
[1743709900634,1e-08,1786.5,1786.4,6.11264673]
[1743709900930,1e-08,1786.5,1786.4,8.61228947]
[1743709901335,1e-08,1786.5,1786.4,9.31943844]
[1743709901530,1e-08,1786.5,1786.4,6.81943844]
[1743709901729,1e-08,1786.5,1786.4,9.31943844]
[1743709902333,1e-08,1786.5,1786.4,15.28943844]
[1743709902526,4.7007,1787.2,1787.1,1.11955]
[1743709902835,1.11943,1787.3,1787.2,1.11943]
[1743709903035,1.11943,1787.3,1787.2,40.8]
[1743709903829,1.11943,1787.3,1787.2,41.91949]
[1743709904033,1.39078363,1787.4,1787.3,1.11943]
[1743709904230,2.51014363,1787.4,1787.3,1.11943]
[1743709904426,1.11943,1787.3,1787.2,40.8]
[1743709904633,2.50863,1787.3,1787.2,40.8]
[1743709905041,1.3892,1787.3,1787.2,41.91949]
[1743709905232,1.12774363,1787.4,1787.3,1.11943]
[1743709905729,1.11943,1787.3,1787.2,40.8]
[1743709905930,1.3892,1787.3,1787.2,45.82746]
[1743709906827,2.50863,1787.3,1787.2,44.708]
[1743709907025,2.50863,1787.3,1787.2,3.908]
[1743709907528,2.50863,1787.3,1787.2,5.02749]
[1743709908239,1.3892,1787.3,1787.2,5.02749]
[1743709908436,0.00838363,1787.4,1787.3,1.11943]
[1743709908629,1.11943,1787.3,1787.2,5.02745]
[1743709908825,2.62033,1787.3,1787.2,5.02745]
[1743709909230,2.62033,1787.3,1787.2,3.908]
[1743709910232,2.62033,1787.3,1787.1,0.00838363]
[1743709910233,1.11949,1787.2,1787.1,0.00838363]
[1743709910428,6.57719,1787.2,1787.1,0.00838363]
[1743709911837,3.36939,1787.2,1787.1,0.00838363]
[1743709912545,6.57719,1787.2,1787.1,0.00838363]
[1743709913044,3.36939,1787.2,1787.1,0.00838363]
[1743709913232,3.36939,1787.2,1787.1,1.12793363]
[1743709913638,9.07719,1787.2,1787.1,0.00838363]
[1743709914242,5.86939,1787.2,1787.1,0.00838363]
[1743709914442,3.36939,1787.2,1787.1,0.00838363]
[1743709914943,6.57719,1787.2,1787.1,0.00838363]
[1743709915441,9.07719,1787.2,1787.1,0.00838363]
[1743709919646,9.07719,1787.2,1786.2,9.1778]
[1743709919647,1.12005,1786.3,1786.2,9.1778]
[1743709919847,1.12018,1786.1,1786.0,57.56321]
[1743709920059,1.12016,1786.2,1786.1,1.12013]
[1743709920251,1.12018,1786.1,1786.0,102.6747]
[1743709920453,2.64688,1786.1,1786.0,101.154]
[1743709920656,2.64688,1786.1,1786.0,40.8]
[1743709920859,5.85468,1786.1,1786.0,40.8]
[1743709921055,6.58178,1786.1,1786.0,40.8]
[1743709921263,1.12024,1786.0,1785.9,0.00838363]
[1743709921554,2.64694,1786.0,1785.9,0.00838363]
[1743709921756,5.14694,1786.0,1785.9,0.00838363]
[1743709925362,5.14694,1786.0,1785.9,3.63e-06]
[1743709925661,5.24381409,1786.0,1785.9,3.63e-06]
[1743709925965,5.24380963,1786.0,1785.9,3.63e-06]
[1743709927362,11.21180963,1786.0,1785.9,3.63e-06]
[1743709927663,1.12081,1785.1,1785.0,2.60675]
[1743709928066,1.12081,1785.1,1785.0,42.2859]
[1743709928271,1.12081,1785.1,1785.0,43.40677]
[1743709928574,4.32861,1785.1,1785.0,40.8]
[1743709928766,1.12093,1784.9,1784.8,3.91]
[1743709928972,1.12104,1784.8,1784.6,6.43117]
[1743709929276,1.12106,1784.7,1784.6,6.43117]
[1743709929570,2.61613,1784.8,1784.6,5.3101]
[1743709929869,2.61613,1784.8,1784.7,40.8]
[1743709930270,1.4951,1784.8,1784.4,2.1615]
[1743709930475,1.12118,1784.5,1784.4,5.3081]
[1743709930772,1.12118,1784.5,1784.4,46.1081]
[1743709931163,1.12118,1784.5,1784.4,47.22935]
[1743709931358,1.12118,1784.5,1784.4,46.1081]
[1743709931957,1.4951,1784.6,1784.4,47.22935]
[1743709931958,2.61626,1784.6,1784.4,47.22935]
[1743709932374,1.12118,1784.5,1784.4,46.1081]
[1743709933172,1.12118,1784.5,1784.4,43.32035]
[1743709933373,2.61626,1784.6,1784.4,43.32035]
[1743709933565,1.12118,1784.5,1784.4,43.32035]
[1743709933967,1.12118,1784.5,1784.4,42.1991]
[1743709934465,1.4951,1784.6,1784.4,43.32035]
[1743709934466,2.61626,1784.6,1784.4,43.32035]
[1743709934667,1.12118,1784.5,1784.4,43.32035]
[1743709934864,1.12118,1784.5,1784.4,42.1991]
[1743709934865,4.32898,1784.5,1784.4,42.1991]
[1743709935868,4.32898,1784.5,1784.4,43.32035]
[1743709935869,1.12118,1784.5,1784.4,43.32035]
[1743709936375,2.61625,1784.6,1784.5,1.12118]
[1743709936777,2.61625,1784.6,1784.5,2.57378]
[1743709937370,2.61625,1784.6,1784.5,1.4526]
[1743709937575,1.12115,1784.6,1784.5,2.57378]
[1743709938071,3.2078,1784.7,1784.6,1.12112]
[1743709938282,4.32876,1784.9,1784.8,1.12099]
[1743709938473,1.12102,1784.8,1784.7,1.12101]
[1743709938665,1.4419,1785.0,1784.7,1.4112]
[1743709938971,2.56279,1785.0,1784.9,1.12093]
[1743709939169,2.56279,1785.0,1784.9,1.12089]
[1743709939170,1.1209,1785.0,1784.9,1.12089]
[1743709939370,1.12095,1784.9,1784.8,1.12096]
[1743709939578,2.56285,1784.9,1784.8,1.12096]
[1743709939978,1.1209,1785.0,1784.9,1.12088]
[1743709940175,0.74858363,1785.2,1784.8,3.2078]
[1743709940471,3.905,1785.6,1784.8,3.2078]
[1743709940472,1.1204,1785.8,1785.7,1.1204]
[1743709940672,1.12043,1785.7,1785.6,5.04448]
[1743709940980,1.12042,1785.8,1785.7,1.12042]
[1743709941271,2.56226,1785.9,1785.7,2.54772]
[1743709941471,1.12037,1785.8,1785.7,1.4273]
[1743709941672,5.79257,1785.8,1785.7,1.4273]
[1743709943173,1.12043,1785.7,1785.6,41.92049]
[1743709943478,3.21618363,1786.0,1785.9,1.1203]
[1743709943670,1.1203,1785.9,1785.8,5.03933]
[1743709943866,2.5847,1785.9,1785.8,5.03933]
[1743709944575,1.4644,1785.9,1785.8,5.03933]
[1743709944977,4.33647363,1786.0,1785.9,1.1203]
[1743709945277,4.33647363,1786.0,1785.9,2.5797]
[1743709945476,4.33647363,1786.0,1785.9,1.4594]
[1743709946677,4.33647363,1786.0,1785.9,2.5797]
[1743709947070,1.12867363,1786.0,1785.9,2.5797]
[1743709947281,1.12867363,1786.0,1785.9,1.4594]
[1743709947479,1.12867363,1786.0,1785.9,2.5797]
[1743709947777,1.12867363,1786.0,1785.9,1.4594]
[1743709947982,1.12867363,1786.0,1785.9,2.5797]
[1743709948783,1.12867363,1786.0,1785.9,1.4594]
[1743709949075,1.12867363,1786.0,1785.9,2.5797]
[1743709949785,4.33647363,1786.0,1785.9,1.4594]
[1743709950177,4.33647363,1786.0,1785.9,2.5797]
[1743709950380,3.21618363,1786.0,1785.9,2.5797]
[1743709950578,0.00838363,1786.0,1785.9,2.5797]
[1743709950777,0.00838363,1786.0,1785.9,3.2774]
[1743709952380,1e-08,1786.0,1785.9,13.66896912]
[1743709952686,1.11987,1786.6,1786.5,1.11988]
[1743709952888,1.11987,1786.6,1786.5,5.02288]
[1743709953087,1.11985,1786.7,1786.6,1.11987]
[1743709953388,1.11985,1786.7,1786.6,1.4425]
[1743709953577,1.11987,1786.6,1786.5,3.903]
[1743709953777,1.11987,1786.6,1786.5,3.91138363]
[1743709954380,1.11987,1786.6,1786.5,5.03131363]
[1743709954577,1.11987,1786.6,1786.5,6.47381363]
[1743709954782,1.11986,1786.7,1786.6,1.11985]
[1743709955590,4.33595363,1786.8,1786.7,1.1198]
[1743709956486,3.21618363,1786.8,1786.7,1.1198]
[1743709956790,0.00838363,1786.8,1786.7,1.1198]
[1743709956990,0.00838363,1786.8,1786.7,2.5567]
[1743709963389,0.00838363,1786.8,1786.7,5.0567]
[1743709963597,0.7068,1787.3,1786.9,2.79915]
[1743709963789,1.82628,1787.3,1787.2,1.11949]
[1743709964287,1.81801,1787.5,1787.4,1.11936]
[1743709964489,3.2078,1787.7,1787.5,1.1193]
[1743709964793,1.11923,1787.7,1787.6,1.11924]
[1743709964995,2.58333,1787.7,1787.6,1.11924]
[1743709965384,0.00838363,1787.8,1787.7,1.11918]
[1743709965588,0.00838363,1787.8,1787.7,5.02018]
[1743709965996,1.12749363,1787.8,1787.7,5.02018]
[1743709966294,1.12749363,1787.8,1787.7,3.901]
[1743709971089,1.12749363,1787.8,1787.7,5.02018]
[1743709972094,0.00838363,1787.8,1787.7,5.02018]
[1743709972598,1.12749363,1787.8,1787.7,6.46038]
[1743709974808,1.11918,1787.7,1787.6,3.899]
[1743709975004,2.52938,1787.7,1787.6,3.899]
[1743709976108,2.52938,1787.7,1787.6,5.01824]
[1743709977001,2.52938,1787.7,1787.6,3.899]
[1743709977202,2.52938,1787.7,1787.6,5.01824]
[1743709977601,0.72228363,1787.8,1787.7,1.11918]
[1743709977802,1.84144363,1787.8,1787.7,1.11918]
[1743709978002,3.26954363,1787.8,1787.7,2.52628]
[1743709978198,2.15038363,1787.8,1787.7,2.52628]
[1743709978403,2.55559363,1787.8,1787.7,2.52628]
[1743709979414,2.55559363,1787.8,1787.7,1.11918]
[1743709979609,1.11918,1787.7,1787.6,3.899]
[1743709979812,1.11918,1787.7,1787.6,5.01824]
[1743709981606,2.55560363,1787.8,1787.7,1.11918]
[1743709981912,2.55560363,1787.8,1787.7,2.57618]
[1743709982302,1.43648363,1787.8,1787.7,3.10675587]
[1743709982615,0.00838363,1787.8,1787.7,3.10675587]
[1743709982914,3.2078,1788.0,1787.7,3.10675587]
[1743709982915,4.3266,1788.4,1787.8,2.79779]
[1743709983110,1.5214,1788.4,1788.3,1.1188]
[1743709983310,1.5221,1788.6,1788.5,1.11868]
[1743709983513,1.5214,1788.7,1788.6,1.11861]
[1743709983712,2.63995,1788.7,1788.6,3.899]
[1743709984616,3.39955,1788.7,1788.6,3.899]
[1743709985011,3.39955,1788.7,1788.6,5.01761]
[1743709985212,3.39955,1788.7,1788.6,3.899]
[1743709985408,6.60735,1788.7,1788.6,3.899]
[1743709985609,3.39955,1788.7,1788.6,3.899]
[1743709987721,1.11861,1788.6,1788.5,3.90638363]
[1743709987922,3.35281,1788.6,1788.5,3.90638363]
[1743709988117,6.56061,1788.6,1788.5,3.90638363]
[1743709988515,9.06061,1788.6,1788.5,0.00838363]
[1743709988916,6.56061,1788.6,1788.5,0.00838363]
[1743709990219,9.06061,1788.6,1788.5,0.00838363]
[1743709991025,1.11905,1787.9,1787.8,4.6007]
[1743709991332,1.11905,1787.9,1787.8,47.74180595]
[1743709991527,1.11905,1787.9,1787.8,47.59818704]
[1743709991927,1.11905,1787.9,1787.8,48.44769767]
[1743709992119,2.57875,1787.9,1787.8,46.89274912]
[1743709992426,2.57875,1787.9,1787.8,46.89275912]
[1743709992624,2.57875,1787.9,1787.8,45.77364912]
[1743709992921,5.78655,1787.9,1787.8,40.8]
[1743709994014,1.11911,1787.8,1787.7,0.00838363]
[1743709994220,2.53701,1787.8,1787.7,0.00838363]
[1743709994519,2.53701,1787.8,1787.7,40.80838363]
[1743709995024,2.53701,1787.8,1787.7,1e-08]
[1743709995025,5.03701,1787.8,1787.7,1e-08]
[1743709995215,5.13415523,1787.8,1787.7,1e-08]
[1743709995416,5.13415546,1787.8,1787.7,1e-08]
[1743709995621,5.5498095,1787.8,1787.7,1e-08]
[1743709995918,5.03701,1787.8,1787.7,1e-08]
[1743709996128,2.53701,1787.8,1787.7,1e-08]
[1743709999125,2.53701,1787.8,1787.7,40.80000001]
[1743709999731,2.53701,1787.8,1787.7,42.28040001]
[1743710000228,2.53701,1787.8,1787.7,43.39958001]
[1743710000425,2.53701,1787.8,1787.7,42.28040001]
[1743710000426,1.11911,1787.8,1787.7,42.28040001]
[1743710000626,1.11911,1787.8,1787.7,40.80000001]
[1743710001435,2.58281,1787.8,1787.7,40.80000001]
[1743710001827,2.58281,1787.8,1787.7,42.28040001]
[1743710002135,2.58281,1787.8,1787.7,40.80000001]
[1743710004536,2.58281,1787.8,1787.7,1e-08]
[1743710004929,2.58281,1787.8,1787.7,40.80000001]
[1743710005336,2.58281,1787.8,1787.7,1e-08]
[1743710006932,5.08281,1787.8,1787.7,1e-08]
[1743710007727,2.58281,1787.8,1787.7,1e-08]
[1743710007931,2.58281,1787.8,1787.7,40.80000001]
[1743710008129,2.58281,1787.8,1787.7,41.91918001]
[1743710008334,1.11911,1787.8,1787.7,41.91918001]
[1743710008537,1.11909,1787.9,1787.8,1.11911]
[1743710008734,1.3791,1788.0,1787.8,1.11911]
[1743710008735,1.11905,1788.0,1787.9,1.11905]
[1743710009240,1.11905,1788.0,1787.9,2.63415]
[1743710009537,1.11905,1788.0,1787.9,1.5151]
[1743710010033,1.11905,1787.9,1787.8,3.898]
[1743710010227,1.11903,1788.0,1787.9,1.11905]
[1743710011232,1.11903,1788.0,1787.9,1.4741]
[1743710012038,1.11903,1788.0,1787.9,2.59315]
[1743710012743,1.11889,1788.2,1788.1,1.11888]
[1743710013038,1.11889,1788.2,1788.1,5.01688]
[1743710013236,1.11889,1788.2,1788.1,3.898]
[1743710013435,1.11889,1788.2,1788.1,5.3721]
[1743710015238,1.11889,1788.2,1788.1,3.898]
[1743710015438,2.79732,1788.1,1787.7,46.77000001]
[1743710015738,1.11911,1787.8,1787.7,46.77000001]
[1743710015937,1.11911,1787.8,1787.7,5.97000001]
[1743710016241,2.60651,1787.8,1787.7,5.97000001]
[1743710016441,2.60651,1787.8,1787.7,1e-08]
[1743710018436,5.10651,1787.8,1787.7,1e-08]
[1743710021144,2.60651,1787.8,1787.7,1e-08]
[1743710022338,5.10651,1787.8,1787.7,1e-08]
[1743710024046,2.60651,1787.8,1787.7,1e-08]
[1743710025940,9.00451,1787.8,1787.7,1e-08]
[1743710026140,9.10163558,1787.8,1787.7,1e-08]
[1743710026939,9.1016275,1787.8,1787.7,1e-08]
[1743710030046,9.00451,1787.8,1787.7,1e-08]
[1743710030549,9.10163378,1787.8,1787.7,1e-08]
[1743710035246,9.10163378,1787.8,1786.9,1.4983]
[1743710035247,1.11961,1787.0,1786.9,1.4983]
[1743710035545,4.32741,1787.0,1786.9,2.9786]
[1743710035751,4.32741,1787.0,1786.9,43.0403]
[1743710037444,4.32741,1787.0,1786.9,44.15998]
[1743710037753,4.32741,1787.0,1786.9,43.0403]
[1743710037946,1.11961,1787.0,1786.9,43.0403]
[1743710038147,4.32741,1787.0,1786.9,43.0403]
[1743710038448,1.11961,1787.0,1786.9,43.0403]
[1743710038844,1.11961,1787.0,1786.9,44.15998]
[1743710039047,1.11961,1787.0,1786.9,43.0403]